bitfinex/quotes_ETHUSD_20260109
["timestamp","ask_amount","ask_price","bid_price","bid_amount"]
[1767920712979,6.17745485,3116.6,3115.7,3.2095482]
[1767920713208,7.12711664,3116.6,3115.7,3.2095482]
[1767920713391,0.94966179,3116.5,3115.7,4.20571849]
[1767920713691,3.20862478,3116.6,3115.8,0.99617029]
[1767920713896,0.002,3116.1,3115.8,0.99617029]
[1767920715413,0.002,3116.1,3115.9,0.99617029]
[1767920718297,0.002,3116.1,3115.4,0.001]
[1767920718298,0.95166179,3116.1,3115.4,0.001]
[1767920718482,0.94966179,3116.0,3115.4,0.001]
[1767920719378,0.002,3116.1,3115.4,3.21084928]
[1767920719697,0.002,3116.1,3115.5,0.42070196]
[1767920720602,3.21113962,3116.1,3115.5,0.42070196]
[1767920720771,4.16080141,3116.1,3115.5,0.42070196]
[1767920720970,0.94966179,3116.0,3115.4,0.001]
[1767920722905,4.15893075,3116.0,3115.4,0.001]
[1767920723414,3.21118411,3116.1,3115.4,0.001]
[1767920723620,3.21118411,3116.1,3115.4,0.99717029]
[1767920726029,3.21118411,3116.1,3115.7,0.001]
[1767920726230,4.24504859,3116.1,3115.7,0.001]
[1767920727030,5.19471038,3116.1,3115.7,0.001]
[1767920727530,0.94966179,3116.0,3115.7,0.001]
[1767920728301,1.03586448,3116.1,3115.7,0.001]
[1767920728792,4.24500615,3116.1,3115.7,0.001]
[1767920728998,5.19466794,3116.1,3115.7,0.001]
[1767920729429,0.94966179,3115.9,3115.7,0.001]
[1767920733201,0.84037104,3116.0,3115.7,0.001]
[1767920735131,0.002,3116.1,3115.7,0.001]
[1767920735808,3.21114926,3116.1,3115.7,0.001]
[1767920736308,0.002,3116.1,3115.7,0.001]
[1767920737340,0.94289248,3115.9,3115.7,0.001]
[1767920737541,0.94289248,3115.9,3115.8,0.001]
[1767920737739,0.94489248,3116.1,3115.8,0.001]
[1767920737943,1.33392514,3116.0,3115.8,0.001]
[1767920738112,1.03317958,3116.0,3115.8,0.001]
[1767920738537,4.24250946,3116.0,3115.8,0.001]
[1767920739716,0.94289248,3115.9,3115.8,0.001]
[1767920739921,0.94289248,3115.9,3115.4,0.001]
[1767920740141,3.91172255,3115.8,3115.4,0.001]
[1767920740443,0.94289248,3115.8,3115.4,0.001]
[1767920740834,8.15423201,3116.0,3115.4,0.001]
[1767920743341,2.96883007,3115.8,3115.4,0.001]
[1767920743541,0.94289248,3115.5,3114.9,0.001]
[1767920743843,3.91172255,3115.3,3114.9,0.001]
[1767920744143,0.94289248,3115.3,3114.9,0.001]
[1767920744344,2.96883007,3115.5,3114.9,0.001]
[1767920744345,3.91172255,3115.5,3114.9,0.001]
[1767920744509,0.94289248,3115.4,3114.9,0.001]
[1767920744706,0.94289248,3115.2,3114.9,0.001]
[1767920745773,2.96883007,3115.3,3114.9,0.001]
[1767920746413,7.51270612,3115.5,3114.9,0.001]
[1767920749572,3.20901884,3116.3,3115.9,0.97605957]
[1767920749845,6.17784891,3116.3,3115.6,0.97605957]
[1767920750070,6.17784891,3116.3,3115.3,2.96883007]
[1767920750071,7.83301553,3116.3,3115.3,0.97605957]
[1767920750367,0.94289248,3116.2,3115.4,1.81805957]
[1767920750572,0.002,3116.4,3115.4,1.81805957]
[1767920750573,0.002,3116.4,3115.8,0.97605957]
[1767920750715,0.30046348,3116.3,3115.9,0.97605957]
[1767920750963,0.94289248,3116.3,3115.5,0.97605957]
[1767920751262,3.91172255,3116.2,3115.5,0.97605957]
[1767920751490,2.96883007,3116.2,3115.5,1.47884646]
[1767920751692,2.96883007,3116.2,3115.6,0.97605957]
[1767920751909,7.12256364,3116.4,3115.6,0.97605957]
[1767920752080,0.30045656,3116.3,3115.7,0.97605957]
[1767920752265,3.21084109,3116.4,3115.8,0.97605957]
[1767920752463,0.30044945,3116.3,3115.8,0.97605957]
[1767920752700,3.21084109,3116.4,3115.8,0.97605957]
[1767920752896,3.50939489,3116.3,3115.8,0.97605957]
[1767920753163,3.20894552,3116.3,3115.8,0.97605957]
[1767920754489,3.20894552,3116.3,3115.3,6.17878197]
[1767920754490,0.94289248,3115.9,3115.2,0.97705957]
[1767920754790,2.96883007,3116.0,3115.3,5.02796146]
[1767920755092,2.96883007,3116.0,3115.4,0.97605957]
[1767920755292,4.15203392,3116.1,3115.4,0.97605957]
[1767920755482,4.15203392,3116.1,3115.4,1.79996213]
[1767920758095,7.12098713,3116.0,3115.3,0.842]
[1767920758275,3.91172255,3116.0,3115.3,5.02796463]
[1767920758488,0.94289248,3116.0,3115.3,5.02796463]
[1767920758807,7.12079662,3116.2,3115.4,4.18591453]
[1767920759012,4.15196655,3116.2,3115.5,1.47885102]
[1767920759304,3.20898181,3116.3,3115.6,0.97605957]
[1767920759510,0.30044759,3116.2,3115.6,0.97605957]
[1767920759679,3.20898181,3116.3,3115.6,0.97605957]
[1767920760005,3.20913962,3116.1,3115.6,0.97605957]
[1767920760402,3.20908477,3116.2,3115.6,0.97605957]
[1767920761280,3.20908477,3116.2,3115.6,0.97705957]
[1767920764914,2.96883007,3115.7,3115.2,0.001]
[1767920765085,2.96883007,3115.7,3115.2,0.843]
[1767920765086,3.9199889,3115.7,3115.2,0.843]
[1767920765916,2.96883007,3115.8,3115.2,0.843]
[1767920767707,2.96883007,3115.8,3115.2,0.001]
[1767920768019,2.96883007,3115.8,3115.2,0.843]
[1767920768221,6.17828974,3115.8,3115.2,0.001]
[1767920768426,6.17828974,3115.8,3115.2,0.843]
[1767920769996,2.96883007,3115.8,3115.2,0.843]
[1767920770196,2.96883007,3115.8,3115.2,4.05304023]
[1767920770409,4.16055605,3115.9,3115.2,4.87718073]
[1767920770931,4.16055605,3115.9,3115.2,5.85527645]
[1767920771296,4.16055605,3115.9,3115.2,2.64523622]
[1767920772927,4.16055605,3115.9,3115.5,0.001]
[1767920778933,0.94962791,3115.8,3115.5,0.001]
[1767920779105,1.66250268,3115.8,3115.5,0.001]
[1767920779428,1.66250268,3115.8,3114.9,0.001]
[1767920779429,0.94962791,3115.6,3114.9,0.001]
[1767920779616,0.94962791,3115.5,3114.9,0.001]
[1767920779817,6.41910324,3115.7,3114.6,0.843]
[1767920779818,2.96972253,3115.1,3114.6,0.843]
[1767920780134,0.94962791,3115.0,3114.5,0.842]
[1767920781821,0.94962791,3115.0,3114.3,3.21195549]
[1767920781822,0.94962791,3114.9,3114.3,0.001]
[1767920782017,0.94962791,3114.8,3114.3,0.001]
[1767920783152,1.98362076,3114.9,3114.3,0.001]
[1767920784052,3.210479,3114.8,3114.3,0.001]
[1767920784255,4.16010691,3114.8,3114.3,0.001]
[1767920784456,0.002,3114.7,3114.3,0.001]
[1767920786243,1.47123789,3114.7,3114.3,0.001]
[1767920786445,0.94962791,3114.6,3114.3,0.001]
[1767920786754,0.94962791,3114.6,3113.5,2.97072253]
[1767920786755,0.94962791,3114.4,3113.6,0.96573863]
[1767920786958,0.94962791,3114.4,3113.5,0.001]
[1767920786959,0.94962791,3114.4,3113.7,1.80773863]
[1767920787168,0.94962791,3114.4,3113.7,0.96573863]
[1767920787169,1.34156295,3114.4,3113.7,0.96573863]
[1767920787827,1.34156295,3114.4,3113.7,4.17735069]
[1767920788229,1.34156295,3114.4,3113.5,0.001]
[1767920788230,0.94962791,3113.8,3113.5,0.001]
[1767920788435,0.94962791,3113.5,3113.1,0.1672987]
[1767920788640,2.96972253,3113.6,3113.0,0.96573863]
[1767920788840,0.94962791,3113.5,3112.7,0.96573863]
[1767920789040,0.09345041,3114.3,3112.2,3.21311397]
[1767920789041,0.94962791,3114.2,3113.2,0.96573863]
[1767920789339,7.37141059,3114.4,3113.4,0.96573863]
[1767920789838,0.94962791,3114.8,3113.5,0.96573863]
[1767920790039,0.94962791,3114.8,3113.7,2.96972253]
[1767920790040,3.21262144,3114.7,3113.7,2.96972253]
[1767920790239,0.002,3114.7,3114.0,0.96573863]
[1767920790640,0.002,3114.7,3114.1,0.96573863]
[1767920790949,0.002,3114.7,3114.4,0.96573863]
[1767920791278,0.002,3114.7,3114.5,0.96573863]
[1767920791441,0.002,3115.0,3114.5,0.96573863]
[1767920791756,3.20974881,3115.6,3114.8,0.96573863]
[1767920791956,3.20974881,3115.6,3114.7,2.96972253]
[1767920791957,6.41889722,3115.8,3114.9,1.80773863]
[1767920792196,0.29948648,3115.7,3114.9,1.80773863]
[1767920792351,3.20965464,3115.6,3114.9,1.80773863]
[1767920792952,0.94962791,3115.9,3115.0,0.95280426]
[1767920793150,3.20913962,3116.1,3115.0,0.95280426]
[1767920793349,0.71219505,3116.0,3115.0,0.95280426]
[1767920793563,0.41267665,3116.0,3115.0,0.95280426]
[1767920794374,3.62195207,3116.0,3115.2,0.95280426]
[1767920796670,0.002,3115.3,3115.2,0.95280426]
[1767920798093,0.002,3115.3,3115.2,1.79480426]
[1767920801088,0.002,3115.3,3115.2,0.95280426]
[1767920801276,0.002,3115.3,3115.2,1.79480426]
[1767920804092,0.002,3115.3,3115.2,0.842]
[1767920806392,0.002,3115.3,3114.9,3.21032977]
[1767920806692,0.002,3115.3,3115.0,0.842]
[1767920806865,0.002,3115.3,3114.8,3.21040002]
[1767920807203,0.002,3115.3,3114.9,0.842]
[1767920807390,0.002,3115.3,3114.9,4.05236613]
[1767920807598,0.002,3115.3,3115.0,3.2102673]
[1767920807966,0.002,3115.3,3115.0,4.16307156]
[1767920813481,0.002,3115.3,3115.0,0.95280426]
[1767920814089,0.002,3115.3,3115.0,4.1630357]
[1767920818120,0.002,3115.3,3115.1,0.842]
[1767920820292,0.002,3115.3,3115.1,4.05216631]
[1767920820822,0.002,3115.3,3115.1,0.842]
[1767920822317,0.002,3115.3,3115.1,5.00495344]
[1767920822517,0.002,3115.3,3115.1,1.79480426]
[1767920822696,0.002,3115.3,3115.2,0.842]
[1767920822891,0.002,3115.3,3115.1,0.95280426]
[1767920822892,0.002,3115.3,3115.1,0.842]
[1767920823092,0.96907554,3115.3,3114.9,0.842]
[1767920825704,0.96707554,3115.1,3114.7,0.842]
[1767920825910,1.41509566,3115.1,3114.6,0.842]
[1767920827511,1.41509566,3115.1,3114.6,4.05266262]
[1767920827722,0.96707554,3115.1,3114.6,4.05266262]
[1767920830345,0.96707554,3115.1,3114.6,0.842]
[1767920832164,0.96707554,3115.1,3114.1,0.94224325]
[1767920832165,0.95033039,3115.0,3114.1,0.94224325]
[1767920832326,0.95033039,3114.8,3114.2,0.842]
[1767920832526,1.34236717,3114.7,3114.2,0.842]
[1767920833853,0.95033039,3114.6,3113.6,0.94224325]
[1767920834053,0.95033039,3114.6,3113.8,3.21150641]
[1767920834354,0.95033039,3114.5,3113.8,3.21150641]
[1767920834558,0.95033039,3114.4,3113.7,3.21156986]
[1767920834731,0.95033039,3114.4,3113.9,0.842]
[1767920835330,0.95033039,3114.4,3113.7,3.21156986]
[1767920835530,0.95033039,3114.4,3113.8,0.842]
[1767920835731,0.95033039,3114.3,3113.6,3.21169373]
[1767920835932,0.95033039,3114.2,3113.8,0.842]
[1767920836153,3.92300174,3114.1,3113.2,3.9149146]
[1767920836349,0.95033039,3114.1,3113.3,4.99618634]
[1767920836631,0.95033039,3114.1,3113.4,2.97267135]
[1767920837170,4.03747626,3116.3,3113.4,2.97267135]
[1767920837171,0.002,3115.3,3114.1,0.94224325]
[1767920837466,3.2117329,3115.6,3114.8,0.16748264]
[1767920837467,0.002,3115.5,3114.8,0.16748264]
[1767920837623,0.002,3115.5,3114.9,2.97267135]
[1767920837821,0.002,3115.6,3114.9,2.97267135]
[1767920837822,0.002,3115.6,3115.1,0.94224325]
[1767920838026,0.002,3115.6,3115.2,3.9149146]
[1767920838272,0.002,3115.6,3115.1,0.842]
[1767920838273,2.97467135,3115.6,3115.1,0.842]
[1767920838453,2.97467135,3115.6,3114.9,0.842]
[1767920838454,0.95033039,3115.5,3114.9,0.842]
[1767920839367,0.95033039,3115.5,3114.9,4.05236114]
[1767920839858,0.95033039,3115.5,3114.9,0.842]
[1767920840256,0.95033039,3115.5,3114.8,6.35058373]
[1767920840448,1.36672943,3115.5,3114.9,0.842]
[1767920842261,1.36672943,3115.5,3114.8,7.19258373]
[1767920843064,1.36672943,3115.5,3114.8,7.02510109]
[1767920844460,1.36672943,3115.5,3114.8,4.05242974]
[1767920844661,0.95033039,3115.4,3114.8,4.05242974]
[1767920844856,0.95033039,3115.4,3114.8,7.02510109]
[1767920845057,0.95033039,3115.4,3114.9,0.001]
[1767920845368,0.002,3115.2,3114.9,0.001]
[1767920847470,0.002,3115.2,3114.9,2.97367135]
[1767920847865,0.002,3115.2,3114.9,0.001]
[1767920848072,0.95233039,3115.2,3114.9,0.001]
[1767920850394,0.002,3115.2,3114.9,0.001]
[1767920856455,0.002,3115.5,3115.0,0.96338802]
[1767920857560,0.002,3115.5,3115.2,0.001]
[1767920861636,0.002,3115.5,3115.2,0.96438802]
[1767920862246,0.002,3115.5,3115.2,0.001]
[1767920862551,0.002,3115.5,3115.3,2.97267135]
[1767920862757,0.002,3115.6,3115.3,2.97267135]
[1767920863052,0.002,3116.0,3115.7,2.97267135]
[1767920864672,0.002,3116.0,3115.7,6.18218982]
[1767920866768,0.002,3116.0,3115.7,2.97267135]
[1767920870830,0.002,3116.0,3115.6,4.05160616]
[1767920871033,0.002,3116.0,3115.6,7.02427751]
[1767920871429,0.002,3116.0,3115.6,3.81467135]
[1767920872459,0.002,3116.0,3115.6,7.02431954]
[1767920873064,0.002,3116.0,3115.6,0.842]
[1767920873436,0.95599979,3116.0,3115.6,0.842]
[1767920873760,0.002,3116.0,3115.6,0.842]
[1767920874261,0.002,3116.0,3115.3,0.96338802]
[1767920874465,0.95399979,3115.9,3115.3,0.842]
[1767920874762,2.97467135,3116.0,3115.3,0.842]
[1767920874763,1.3468669,3115.8,3115.3,0.842]
[1767920875576,0.95399979,3115.7,3115.2,0.001]
[1767920877882,0.95399979,3115.6,3115.2,0.001]
[1767920878280,0.95399979,3115.5,3115.2,0.001]
[1767920878479,1.3466669,3115.4,3115.2,0.001]
[1767920878903,0.95399979,3115.4,3115.2,0.001]
[1767920880083,0.95399979,3115.6,3115.2,0.001]
[1767920880873,3.20957411,3115.7,3115.5,0.001]
[1767920881107,4.1655739,3115.7,3115.5,0.001]
[1767920881404,0.002,3115.7,3115.5,0.001]
[1767920881605,0.65770395,3115.6,3115.5,0.001]
[1767920881804,0.002,3115.7,3115.5,0.001]
[1767920882311,0.002,3116.0,3115.5,0.001]
[1767920882611,0.96451399,3115.8,3115.5,0.001]
[1767920884891,3.20935023,3115.9,3115.5,0.001]
[1767920885093,0.96651399,3116.0,3115.5,0.001]
[1767920885289,0.002,3116.0,3115.5,0.001]
[1767920886312,0.30054526,3115.9,3115.5,0.94028408]
[1767920886522,3.21124784,3116.0,3115.5,0.94028408]
[1767920886826,0.93538468,3115.8,3115.5,0.001]
[1767920887690,0.93538468,3115.4,3115.2,0.001]
[1767920888010,0.93338469,3115.4,3115.2,0.001]
[1767920888405,7.11597418,3115.4,3115.2,0.001]
[1767920888602,0.93538468,3115.3,3114.9,0.001]
[1767920888805,9.39250763,3115.4,3114.9,0.001]
[1767920888806,1.96817391,3115.2,3114.9,0.001]
[1767920889009,1.96617392,3115.2,3114.9,0.001]
[1767920890692,5.17625624,3115.2,3114.9,0.001]
[1767920894332,0.93538468,3115.1,3114.9,0.001]
[1767920895041,4.14559199,3115.1,3114.9,0.001]
[1767920895233,3.21020731,3115.1,3114.9,0.001]
[1767920897324,0.93538468,3115.0,3114.3,4.16359305]
[1767920897891,0.93538468,3115.0,3114.3,1.79465764]
[1767920898094,0.93538468,3115.0,3114.3,5.00563712]
[1767920898295,0.93538468,3115.0,3114.3,4.98531758]
[1767920898501,0.93538468,3115.0,3114.3,2.6163381]
[1767920898710,0.93538468,3115.0,3114.3,1.79465764]
[1767920900014,3.21037593,3114.9,3114.3,1.79465764]
[1767920900210,4.14576061,3114.9,3114.1,4.16380715]
[1767920900415,0.93538468,3114.8,3114.2,0.842]
[1767920902225,4.14589017,3114.8,3114.1,0.95265764]
[1767920902526,4.14589017,3114.8,3114.2,0.842]
[1767920903723,4.14589017,3114.8,3114.1,1.69018667]
[1767920903925,0.93538468,3114.7,3114.1,0.73752903]
[1767920904223,0.93538468,3114.7,3114.2,0.842]
[1767920904224,4.1460676,3114.7,3114.2,0.842]
[1767920904426,0.93538468,3114.6,3113.7,0.95265764]
[1767920904600,0.93538468,3114.6,3114.0,0.842]
[1767920905699,0.93538468,3114.6,3114.5,0.001]
[1767920906116,4.88172715,3114.6,3114.5,0.001]
[1767920906732,4.88172715,3114.6,3113.9,1.79465764]
[1767920907104,4.14606984,3114.6,3113.9,1.79465764]
[1767920909030,0.93538468,3114.6,3113.9,5.0060384]
[1767920909601,3.21051782,3114.8,3114.0,0.95265764]
[1767920909803,3.21051782,3114.8,3114.1,0.95265764]
[1767920913629,0.96798757,3114.9,3114.1,3.21118751]
[1767920913937,0.96798757,3114.9,3114.1,4.33306142]
[1767920914722,0.96798757,3114.9,3114.2,0.98281924]
[1767920914928,6.42009468,3115.3,3114.2,0.98281924]
[1767920915125,0.30016536,3115.2,3114.2,0.98281924]
[1767920915330,0.30016536,3115.1,3114.2,0.98281924]
[1767920915530,0.30016536,3115.0,3114.3,0.98281924]
[1767920915734,7.38808225,3115.3,3114.3,0.98281924]
[1767920915934,0.30023749,3115.2,3114.3,0.98281924]
[1767920916142,0.30023749,3115.1,3114.3,0.98281924]
[1767920916339,0.30023749,3115.0,3114.3,0.98281924]
[1767920916544,7.38808225,3115.3,3114.3,0.98281924]
[1767920916745,1.74156527,3115.2,3114.3,0.98281924]
[1767920916945,0.30032991,3115.1,3114.3,0.98281924]
[1767920917243,0.30032991,3115.0,3114.3,0.98281924]
[1767920917423,0.30032991,3114.9,3114.3,0.98281924]
[1767920917624,6.42033962,3115.1,3114.5,0.001]
[1767920917825,1.08660376,3115.0,3114.5,0.001]
[1767920918025,0.30044626,3114.9,3114.5,0.001]
[1767920918225,0.7861575,3115.0,3114.5,0.001]
[1767920918425,0.30049837,3114.9,3114.5,0.001]
[1767920918624,0.7861575,3115.0,3114.5,0.001]
[1767920918840,0.3004984,3114.9,3114.5,0.001]
[1767920919041,0.7861575,3115.0,3114.5,0.001]
[1767920919217,0.30049837,3114.9,3114.5,0.001]
[1767920919416,0.7861575,3115.0,3114.5,0.001]
[1767920919616,3.210479,3114.8,3114.5,0.001]
[1767920919819,3.21040494,3114.9,3114.5,0.001]
[1767920924347,3.51126189,3114.8,3114.5,0.001]
[1767920924540,3.21052131,3114.8,3114.5,0.001]
[1767920925251,3.21042457,3114.9,3114.5,0.001]
[1767920925414,0.30078189,3114.8,3114.5,0.001]
[1767920925619,3.21042457,3114.9,3114.5,0.001]
[1767920925813,0.30078166,3114.8,3114.5,0.001]
[1767920926024,4.02791017,3114.9,3114.5,0.001]
[1767920926253,0.30078166,3114.8,3114.5,0.001]
[1767920926553,4.02791017,3114.9,3114.5,0.001]
[1767920926923,0.30081981,3114.8,3114.5,0.001]
[1767920927134,4.02791017,3114.9,3114.5,0.001]
[1767920927344,0.30086826,3114.8,3114.5,0.001]
[1767920927651,4.02791017,3114.9,3114.5,0.001]
[1767920927853,0.30086824,3114.8,3114.5,0.001]
[1767920928050,4.02791017,3114.9,3114.5,0.001]
[1767920928357,0.30086826,3114.8,3114.5,0.001]
[1767920928542,4.02791017,3114.9,3114.5,0.001]
[1767920928839,0.30092153,3114.8,3114.5,0.001]
[1767920929039,4.02791017,3114.9,3114.5,0.001]
[1767920929223,0.30092156,3114.8,3114.5,0.001]
[1767920929552,0.002,3114.8,3114.5,0.001]
[1767920938609,0.002,3114.8,3114.5,0.98381924]
[1767920938787,0.002,3115.1,3114.7,0.98281924]
[1767920938991,0.30103139,3115.0,3114.7,0.98281924]
[1767920939296,0.3010177,3114.9,3114.7,1.69941413]
[1767920939509,0.002,3115.1,3114.7,1.69941413]
[1767920939713,0.3010167,3115.0,3114.7,1.69941413]
[1767920940011,0.002,3115.1,3114.7,1.69941413]
[1767920940325,3.20970893,3115.6,3114.8,0.98281924]
[1767920940477,0.74048122,3116.0,3115.0,0.98281924]
[1767920940478,0.96998757,3116.0,3115.0,0.98281924]
[1767920940672,3.20939708,3115.9,3115.0,0.98281924]
[1767920941399,6.41882073,3115.9,3115.1,0.98281924]
[1767920941607,3.20939708,3115.9,3115.1,0.98281924]
[1767920944206,7.33918897,3115.9,3115.1,0.98281924]
[1767920945390,4.12976532,3115.9,3115.1,0.98281924]
[1767920945991,7.33918897,3115.9,3115.1,0.98281924]
[1767920946814,0.9451201,3115.7,3115.0,0.842]
[1767920947711,0.9451201,3115.7,3115.2,0.9389019]
[1767920947712,0.002,3115.7,3115.2,0.9389019]
[1767920947910,0.002,3115.7,3115.3,1.3538052]
[1767920952558,0.002,3115.7,3115.3,0.9389019]
[1767920953456,0.002,3115.4,3115.3,0.9389019]
[1767920954967,0.002,3115.7,3115.3,0.9389019]
[1767920955170,0.002,3115.7,3115.4,0.9389019]
[1767920958081,0.002,3115.7,3115.4,4.14872449]
[1767920958385,0.002,3116.0,3115.6,0.9389019]
[1767920958549,0.002,3116.0,3115.8,2.96909981]
[1767920959566,0.002,3116.3,3115.7,1.7809019]
[1767920959774,0.002,3116.3,3115.9,2.96909981]
[1767920959971,0.9451201,3116.3,3115.9,2.96909981]
[1767920960967,0.9451201,3116.3,3115.7,0.842]
[1767920961166,0.9451201,3116.3,3115.8,0.40516107]
[1767920962957,0.002,3116.3,3115.8,0.40516107]
[1767920963270,0.002,3116.3,3115.8,1.34406297]
[1767920963483,0.002,3116.3,3115.8,4.5535056]
[1767920963990,0.002,3116.3,3115.8,1.34406297]
[1767920964372,0.002,3116.3,3115.9,0.83646276]
[1767920965398,0.002,3116.0,3115.9,0.83646276]
[1767920966178,0.002,3116.0,3115.7,0.842]
[1767920967193,0.002,3116.0,3115.4,8.15060851]
[1767920967353,0.002,3116.0,3115.5,0.842]
[1767920967807,0.002,3116.0,3115.5,4.05174085]
[1767920968289,0.002,3116.0,3115.5,7.02084066]
[1767920968486,0.002,3116.0,3115.6,0.89925281]
[1767920971788,0.002,3116.0,3115.6,4.10889481]
[1767920974292,0.002,3116.0,3115.6,0.89925281]
[1767920976898,0.002,3116.0,3115.9,0.001]
[1767920977394,0.002,3116.0,3115.4,5.04844818]
[1767920977587,0.002,3116.0,3115.5,4.2063973]
[1767920978906,0.002,3116.0,3115.5,7.17549711]
[1767920979999,0.9202192,3116.0,3115.5,3.20975548]
[1767920982196,0.9202192,3116.0,3115.4,4.05181254]
[1767920985300,0.9202192,3116.0,3115.7,2.96909981]
[1767920985505,0.002,3116.0,3115.5,2.96909981]
[1767920985802,0.002,3116.0,3115.5,4.38875128]
[1767920986997,3.21099662,3116.3,3115.7,3.96574163]
[1767920986998,0.002,3116.3,3115.7,3.96574163]
[1767920987199,0.002,3116.3,3115.7,7.1752372]
[1767920987523,0.002,3116.3,3115.7,8.43989489]
[1767920987674,0.002,3116.3,3115.7,7.44325307]
[1767920987873,0.002,3116.3,3115.9,2.96909981]
[1767920989278,0.002,3116.3,3115.9,6.17840476]
[1767920989491,0.002,3116.3,3115.9,6.17940476]
[1767920989785,0.002,3116.0,3115.9,7.24476056]
[1767920989985,0.9202192,3116.3,3115.9,7.24476056]
[1767920991073,0.9202192,3116.3,3115.9,4.03545561]
[1767920991512,0.9202192,3116.3,3115.9,1.0663558]
[1767920991904,0.002,3116.3,3115.9,1.0663558]
[1767920992111,0.002,3116.3,3115.9,0.001]
[1767920995147,0.002,3116.3,3116.0,0.99664182]
[1767920995545,0.002,3116.3,3115.9,6.17937108]
[1767920995908,0.002,3116.3,3115.9,7.1760129]
[1767920996108,0.002,3116.3,3116.0,4.20587974]
[1767920996508,0.002,3116.3,3115.9,6.17939009]
[1767920996709,0.002,3116.3,3116.0,1.03854799]
[1767920996904,0.002,3116.3,3115.9,4.2069321]
[1767920997840,0.002,3116.3,3115.9,7.41627771]
[1767920998043,0.002,3116.3,3115.9,4.2069321]
[1767920998213,0.002,3116.4,3116.1,3.96574163]
[1767920998413,0.002,3116.4,3116.1,0.99664182]
[1767920998637,0.002,3116.4,3115.9,7.17603191]
[1767920998941,0.002,3116.4,3116.1,0.71760319]
[1767921000036,0.002,3116.4,3115.9,0.001]
[1767921000716,0.002,3116.4,3115.9,0.843]
[1767921001039,0.002,3116.1,3115.9,0.001]
[1767921001928,0.002,3116.4,3116.0,2.96909981]
[1767921002242,0.9182192,3116.3,3116.0,2.96909981]
[1767921002447,0.002,3116.4,3116.0,3.56301977]
[1767921003319,0.98016181,3116.4,3116.0,3.56301977]
[1767921004444,0.98016181,3116.4,3116.0,0.59391996]
[1767921004949,0.98016181,3116.4,3116.0,3.80314771]
[1767921005521,0.002,3116.4,3116.1,0.98707624]
[1767921010676,0.002,3116.4,3116.1,1.76310862]
[1767921013951,0.002,3116.4,3116.1,4.97224564]
[1767921014376,0.002,3116.4,3116.1,1.76310862]
[1767921016472,0.002,3116.4,3116.1,0.98707624]
[1767921024097,0.002,3116.4,3116.2,0.98011937]
[1767921037646,0.002,3116.4,3116.1,4.05105257]
[1767921037647,0.002,3116.8,3116.4,0.92440418]
[1767921040023,0.002,3116.8,3116.5,4.13313191]
[1767921040239,0.002,3116.8,3116.3,3.2088733]
[1767921040536,0.002,3116.8,3116.5,0.842]
[1767921040739,0.91432427,3116.8,3116.0,3.8030939]
[1767921040942,0.91432427,3116.8,3116.2,0.842]
[1767921042560,0.91432427,3116.8,3116.2,4.0510334]
[1767921042849,0.002,3116.8,3116.2,4.0510334]
[1767921043160,0.002,3116.8,3116.2,0.842]
[1767921045271,0.002,3116.8,3116.2,4.05101832]
[1767921046887,0.002,3116.8,3116.5,0.001]
[1767921056376,0.002,3116.8,3116.5,0.92540418]
[1767921057789,0.002,3116.8,3116.6,0.92440418]
[1767921061004,0.002,3116.8,3116.6,4.13300374]
[1767921061204,0.002,3116.8,3116.7,0.92440418]
[1767921062493,0.002,3116.8,3116.5,0.39033672]
[1767921062704,0.002,3116.8,3116.5,0.001]
[1767921063138,1.00072806,3116.8,3116.5,0.001]
[1767921063453,1.00072806,3116.8,3116.0,0.842]
[1767921063454,0.99872806,3116.6,3116.0,0.842]
[1767921063590,0.002,3116.8,3115.9,0.001]
[1767921063591,3.96669108,3116.4,3115.9,0.001]
[1767921063795,0.99872806,3116.2,3115.9,0.001]
[1767921065619,0.39666911,3116.3,3115.9,0.001]
[1767921067430,3.60560789,3116.3,3115.9,0.001]
[1767921067832,0.39666911,3116.3,3115.9,0.001]
[1767921069430,0.39666911,3116.3,3116.2,0.001]
[1767921070734,3.20856548,3116.7,3116.2,0.001]
[1767921070935,0.28860152,3116.6,3116.2,0.001]
[1767921071235,4.20729354,3116.7,3116.2,0.001]
[1767921071434,1.28730349,3116.6,3116.2,0.001]
[1767921071635,0.4495869,3116.5,3116.2,0.001]
[1767921073543,3.65833732,3116.5,3116.2,0.001]
[1767921074346,4.59354416,3116.5,3116.2,0.001]
[1767921076514,7.56224452,3116.5,3116.2,0.001]
[1767921078768,10.77099494,3116.5,3116.2,0.001]
[1767921079051,3.9039072,3116.3,3115.9,0.001]
[1767921079824,2.96870036,3116.1,3115.9,0.001]
[1767921080124,3.9039072,3116.3,3115.9,0.001]
[1767921080950,7.11293822,3116.3,3115.9,0.001]
[1767921081151,7.11293822,3116.3,3116.2,0.001]
[1767921081354,7.11293822,3116.3,3115.9,0.001]
[1767921081355,0.93520684,3116.2,3115.9,0.001]
[1767921081849,0.93520684,3115.9,3115.2,4.05201849]
[1767921083155,6.17801401,3116.0,3115.3,0.94221364]
[1767921083981,2.96870036,3115.8,3115.3,0.94221364]
[1767921084259,2.96870036,3115.8,3114.9,1.78421364]
[1767921084260,2.96870036,3115.4,3114.9,1.78421364]
[1767921084431,2.96870036,3115.6,3114.9,1.78421364]
[1767921084756,2.96870036,3115.4,3114.9,0.94221364]
[1767921085635,6.17857727,3115.4,3114.8,0.842]
[1767921086246,6.60425211,3115.4,3114.8,0.842]
[1767921086862,3.3943752,3115.4,3114.8,0.842]
[1767921087044,2.96870036,3115.4,3114.8,0.842]
[1767921087761,7.11376896,3115.4,3114.7,0.94221364]
[1767921087961,7.11376896,3115.4,3114.7,1.78421364]
[1767921089250,2.96870036,3115.2,3114.7,0.842]
[1767921089455,8.1464091,3115.2,3114.7,0.842]